[Event "Titled Tuesday Blitz August 1 Late 2023"]
[White "Matlakov, Maxim"]
[Black "Castro Silva, Moises Antonio"]
[WhiteFideId "4168003"]
[BlackFideId "3909794"]
[WhiteElo "2964"]
[BlackElo "2480"]
[Result "1-0"]
[Round "1"]
[TimeControl "180+1"]
[Date "2023.08.01"]
[WhiteClock "0:01:43"]
[BlackClock "0:00:00"]
[Board "14"]

1. d4 {[%clk 0:02:58]}  Nf6 {[%clk 0:02:59]} 2. Nf3 {[%clk 0:02:57]}  e6 {[%clk 0:02:59]} 3. Bg5 {[%clk 0:02:57]}  c5 {[%clk 0:02:57]} 4. e3 {[%clk 0:02:57]}  Nc6 {[%clk 0:02:57]} 5. Nbd2 {[%clk 0:02:57]}  Be7 {[%clk 0:02:57]} 6. Bd3 {[%clk 0:02:57]}  O-O {[%clk 0:02:56]} 7. c3 {[%clk 0:02:57]}  d5 {[%clk 0:02:50]} 8. O-O {[%clk 0:02:52]}  b6 {[%clk 0:02:49]} 9. Ne5 {[%clk 0:02:50]}  Bb7 {[%clk 0:02:48]} 10. f4 {[%clk 0:02:50]}  h6 {[%clk 0:02:46]} 11. Bh4 {[%clk 0:02:50]}  Nxe5 {[%clk 0:01:59]} 12. fxe5 {[%clk 0:02:49]}  Nd7 {[%clk 0:01:58]} 13. Bg3 {[%clk 0:02:46]}  f5 {[%clk 0:01:51]} 14. exf6 {[%clk 0:02:46]}  Nxf6 {[%clk 0:01:50]} 15. Qe2 {[%clk 0:02:40]}  Bd6 {[%clk 0:01:50]} 16. Bf4 {[%clk 0:02:37]}  Qe7 {[%clk 0:01:47]} 17. Nf3 {[%clk 0:02:37]}  Nd7 {[%clk 0:01:12]} 18. Bxd6 {[%clk 0:02:31]}  Qxd6 {[%clk 0:01:13]} 19. Nh4 {[%clk 0:02:31]}  Rxf1+ {[%clk 0:01:08]} 20. Rxf1 {[%clk 0:02:32]}  Rf8 {[%clk 0:01:08]} 21. Re1 {[%clk 0:02:23]}  e5 {[%clk 0:01:04]} 22. Bf5 {[%clk 0:02:19]}  Bc8 {[%clk 0:01:00]} 23. Rf1 {[%clk 0:02:18]}  e4 {[%clk 0:00:47]} 24. Qg4 {[%clk 0:02:13]}  Rf6 {[%clk 0:00:29]} 25. h3 {[%clk 0:02:01]}  c4 {[%clk 0:00:20]} 26. Ng6 {[%clk 0:02:00]}  b5 {[%clk 0:00:14]} 27. a3 {[%clk 0:02:00]}  a5 {[%clk 0:00:14]} 28. h4 {[%clk 0:02:00]}  a4 {[%clk 0:00:08]} 29. h5 {[%clk 0:01:59]}  Kf7 {[%clk 0:00:05]} 30. Ne5+ {[%clk 0:01:52]}  Nxe5 {[%clk 0:00:05]} 31. dxe5 {[%clk 0:01:53]}  Qxe5 {[%clk 0:00:02]} 32. Bxc8 {[%clk 0:01:52]}  Rxf1+ {[%clk 0:00:03]} 33. Kxf1 {[%clk 0:01:53]}  Qh2 {[%clk 0:00:04]} 34. Qh3 {[%clk 0:01:43]}  Qxh3 {[%clk 0:00:02]} 35. gxh3 {[%clk 0:01:43]}  Ke7 {[%clk 0:00:02]} 36. Kg2 {[%clk 0:01:43]}  Kd6 {[%clk 0:00:02]} 37. Kg3 {[%clk 0:01:43]}  Ke7 {[%clk 0:00:00]} 38. Kf4 {[%clk 0:01:43]} 1-0


[Site "https://www.chess.com"]

[Event "Titled Tuesday Blitz August 1 Late 2023"]
[White "Delorme, Axel"]
[Black "Shimanov, Aleksandr"]
[WhiteFideId "632023"]
[BlackFideId "4198603"]
[WhiteElo "2479"]
[BlackElo "2957"]
[Result "0-1"]
[Round "1"]
[TimeControl "180+1"]
[Date "2023.08.01"]
[WhiteClock "0:00:06"]
[BlackClock "0:00:03"]
[Board "15"]

1. e4 {[%clk 0:03:00]}  c5 {[%clk 0:02:55]} 2. Nf3 {[%clk 0:03:00]}  e6 {[%clk 0:02:51]} 3. b3 {[%clk 0:03:00]}  b6 {[%clk 0:02:48]} 4. d4 {[%clk 0:02:56]}  cxd4 {[%clk 0:02:45]} 5. Nxd4 {[%clk 0:02:57]}  Bb7 {[%clk 0:02:46]} 6. Bd3 {[%clk 0:02:57]}  Qf6 {[%clk 0:02:41]} 7. c3 {[%clk 0:02:22]}  Bc5 {[%clk 0:02:39]} 8. Be3 {[%clk 0:02:20]}  Nc6 {[%clk 0:02:37]} 9. Bc2 {[%clk 0:02:12]}  Nge7 {[%clk 0:02:23]} 10. O-O {[%clk 0:02:12]}  O-O {[%clk 0:02:21]} 11. Nxc6 {[%clk 0:01:57]}  Bxc6 {[%clk 0:02:18]} 12. Bxc5 {[%clk 0:01:52]}  bxc5 {[%clk 0:02:19]} 13. Nd2 {[%clk 0:01:51]}  Qxc3 {[%clk 0:02:17]} 14. Rc1 {[%clk 0:01:45]}  Ng6 {[%clk 0:02:12]} 15. Nc4 {[%clk 0:01:41]}  Rad8 {[%clk 0:02:02]} 16. Nd6 {[%clk 0:01:31]}  Qe5 {[%clk 0:01:59]} 17. Bb1 {[%clk 0:01:27]}  Rb8 {[%clk 0:01:25]} 18. g3 {[%clk 0:01:22]}  Rb4 {[%clk 0:01:15]} 19. Nc4 {[%clk 0:01:18]}  Qb8 {[%clk 0:01:02]} 20. h4 {[%clk 0:00:53]}  Ne5 {[%clk 0:00:57]} 21. Na5 {[%clk 0:00:45]}  Bxe4 {[%clk 0:00:52]} 22. Bxe4 {[%clk 0:00:42]}  Rxe4 {[%clk 0:00:53]} 23. Rxc5 {[%clk 0:00:42]}  d5 {[%clk 0:00:52]} 24. Nc6 {[%clk 0:00:37]}  Qd6 {[%clk 0:00:47]} 25. Nxe5 {[%clk 0:00:37]}  Qxe5 {[%clk 0:00:43]} 26. Qc1 {[%clk 0:00:34]}  Re2 {[%clk 0:00:42]} 27. Rc8 {[%clk 0:00:32]}  g6 {[%clk 0:00:42]} 28. Rxf8+ {[%clk 0:00:24]}  Kxf8 {[%clk 0:00:43]} 29. Qh6+ {[%clk 0:00:24]}  Kg8 {[%clk 0:00:42]} 30. Rc1 {[%clk 0:00:24]}  Re1+ {[%clk 0:00:43]} 31. Rxe1 {[%clk 0:00:25]}  Qxe1+ {[%clk 0:00:44]} 32. Kg2 {[%clk 0:00:25]}  Qe4+ {[%clk 0:00:43]} 33. Kg1 {[%clk 0:00:26]}  d4 {[%clk 0:00:43]} 34. h5 {[%clk 0:00:14]}  d3 {[%clk 0:00:39]} 35. Qg5 {[%clk 0:00:14]}  Qd4 {[%clk 0:00:28]} 36. Qd2 {[%clk 0:00:09]}  gxh5 {[%clk 0:00:26]} 37. Kf1 {[%clk 0:00:08]}  Qa1+ {[%clk 0:00:23]} 38. Kg2 {[%clk 0:00:09]}  Qd4 {[%clk 0:00:24]} 39. Kf1 {[%clk 0:00:09]}  Kf8 {[%clk 0:00:18]} 40. Ke1 {[%clk 0:00:08]}  Qe4+ {[%clk 0:00:18]} 41. Qe3 {[%clk 0:00:08]}  Qd5 {[%clk 0:00:08]} 42. Kd2 {[%clk 0:00:08]}  Qa5+ {[%clk 0:00:08]} 43. Kxd3 {[%clk 0:00:07]}  Qxa2 {[%clk 0:00:09]} 44. Qc5+ {[%clk 0:00:06]}  Ke8 {[%clk 0:00:09]} 45. Qc8+ {[%clk 0:00:06]}  Ke7 {[%clk 0:00:10]} 46. Qc7+ {[%clk 0:00:07]}  Kf6 {[%clk 0:00:09]} 47. Qf4+ {[%clk 0:00:08]}  Kg6 {[%clk 0:00:10]} 48. Qe4+ {[%clk 0:00:07]}  Kh6 {[%clk 0:00:10]} 49. Qf4+ {[%clk 0:00:08]}  Kg6 {[%clk 0:00:10]} 50. Qe4+ {[%clk 0:00:08]}  Kg7 {[%clk 0:00:08]} 51. Qd4+ {[%clk 0:00:09]}  f6 {[%clk 0:00:08]} 52. Qd7+ {[%clk 0:00:08]}  Kg6 {[%clk 0:00:07]} 53. Qxe6 {[%clk 0:00:08]}  Qb1+ {[%clk 0:00:07]} 54. Kc3 {[%clk 0:00:08]}  Qc1+ {[%clk 0:00:07]} 55. Kb4 {[%clk 0:00:09]}  Qd2+ {[%clk 0:00:07]} 56. Kb5 {[%clk 0:00:09]}  Qxf2 {[%clk 0:00:07]} 57. Ka6 {[%clk 0:00:07]}  Kg5 {[%clk 0:00:05]} 58. b4 {[%clk 0:00:07]}  f5 {[%clk 0:00:02]} 59. b5 {[%clk 0:00:07]}  Kg4 {[%clk 0:00:02]} 60. Qg8+ {[%clk 0:00:06]}  Kh3 {[%clk 0:00:02]} 61. Qg5 {[%clk 0:00:06]}  Qb6# {[%clk 0:00:03]} 0-1


[Site "https://www.chess.com"]

[Event "Titled Tuesday Blitz August 1 Late 2023"]
[White "Sjugirov, Sanan"]
[Black "Peycheva, Gergana"]
[WhiteFideId "4189302"]
[BlackFideId "2916711"]
[WhiteElo "2950"]
[BlackElo "2479"]
[Result "1-0"]
[Round "1"]
[TimeControl "180+1"]
[Date "2023.08.01"]
[WhiteClock "0:01:53"]
[BlackClock "0:00:02"]
[Board "16"]

1. d4 {[%clk 0:02:59]}  d5 {[%clk 0:02:57]} 2. c4 {[%clk 0:02:59]}  dxc4 {[%clk 0:02:57]} 3. Nf3 {[%clk 0:02:57]}  Nf6 {[%clk 0:02:53]} 4. e3 {[%clk 0:02:57]}  b5 {[%clk 0:02:50]} 5. a4 {[%clk 0:02:54]}  b4 {[%clk 0:02:51]} 6. Bxc4 {[%clk 0:02:54]}  e6 {[%clk 0:02:45]} 7. O-O {[%clk 0:02:53]}  Bb7 {[%clk 0:02:40]} 8. b3 {[%clk 0:02:53]}  Be7 {[%clk 0:02:40]} 9. Bb2 {[%clk 0:02:52]}  O-O {[%clk 0:02:40]} 10. Nbd2 {[%clk 0:02:52]}  Nbd7 {[%clk 0:02:41]} 11. Rc1 {[%clk 0:02:51]}  c5 {[%clk 0:02:41]} 12. Qe2 {[%clk 0:02:48]}  Qc7 {[%clk 0:02:35]} 13. e4 {[%clk 0:02:43]}  Qf4 {[%clk 0:02:25]} 14. Rfe1 {[%clk 0:02:37]}  cxd4 {[%clk 0:02:19]} 15. Bxd4 {[%clk 0:02:36]}  Nb6 {[%clk 0:01:06]} 16. Be5 {[%clk 0:02:31]}  Qg4 {[%clk 0:01:03]} 17. h3 {[%clk 0:02:31]}  Qh5 {[%clk 0:01:03]} 18. Bd3 {[%clk 0:02:27]}  Rac8 {[%clk 0:00:56]} 19. a5 {[%clk 0:02:25]}  Nbd7 {[%clk 0:00:54]} 20. Bd4 {[%clk 0:02:16]}  Nc5 {[%clk 0:00:49]} 21. Bb1 {[%clk 0:02:05]}  Ba6 {[%clk 0:00:42]} 22. Qe3 {[%clk 0:02:05]}  Nfd7 {[%clk 0:00:16]} 23. e5 {[%clk 0:02:04]}  Bb7 {[%clk 0:00:11]} 24. Ne4 {[%clk 0:01:56]}  Nxe4 {[%clk 0:00:10]} 25. Bxe4 {[%clk 0:01:56]}  Bxe4 {[%clk 0:00:10]} 26. Qxe4 {[%clk 0:01:57]}  Nc5 {[%clk 0:00:09]} 27. Qe3 {[%clk 0:01:57]}  Nb7 {[%clk 0:00:06]} 28. a6 {[%clk 0:01:57]}  Na5 {[%clk 0:00:06]} 29. Bxa7 {[%clk 0:01:56]}  Rfd8 {[%clk 0:00:05]} 30. Bb6 {[%clk 0:01:56]}  Nc6 {[%clk 0:00:04]} 31. Bxd8 {[%clk 0:01:55]}  Bxd8 {[%clk 0:00:02]} 32. Red1 {[%clk 0:01:53]} 1-0


[Site "https://www.chess.com"]

[Event "Titled Tuesday Blitz August 1 Late 2023"]
[White "Terry, Renato"]
[Black "Ocido, Michael"]
[WhiteFideId "3803457"]
[BlackFideId "115201920"]
[WhiteElo "2926"]
[BlackElo "2474"]
[Result "1-0"]
[Round "1"]
[TimeControl "180+1"]
[Date "2023.08.01"]
[WhiteClock "0:01:07"]
[BlackClock "0:00:00"]
[Board "20"]

1. e4 {[%clk 0:02:56]}  e6 {[%clk 0:02:56]} 2. d4 {[%clk 0:02:55]}  d5 {[%clk 0:02:56]} 3. exd5 {[%clk 0:02:56]}  exd5 {[%clk 0:02:56]} 4. Nf3 {[%clk 0:02:56]}  Bd6 {[%clk 0:02:56]} 5. c4 {[%clk 0:02:56]}  c6 {[%clk 0:02:42]} 6. Nc3 {[%clk 0:02:56]}  Nf6 {[%clk 0:02:39]} 7. Bd3 {[%clk 0:02:52]}  O-O {[%clk 0:02:32]} 8. O-O {[%clk 0:02:51]}  h6 {[%clk 0:02:32]} 9. Re1 {[%clk 0:02:45]}  Bg4 {[%clk 0:02:04]} 10. h3 {[%clk 0:02:44]}  Bh5 {[%clk 0:02:04]} 11. cxd5 {[%clk 0:02:37]}  cxd5 {[%clk 0:01:45]} 12. g4 {[%clk 0:02:34]}  Bg6 {[%clk 0:01:38]} 13. Bxg6 {[%clk 0:02:34]}  fxg6 {[%clk 0:01:39]} 14. Qb3 {[%clk 0:02:33]}  Nc6 {[%clk 0:01:21]} 15. Kg2 {[%clk 0:01:53]}  Kh8 {[%clk 0:00:23]} 16. Be3 {[%clk 0:01:38]}  Qd7 {[%clk 0:00:15]} 17. Nh4 {[%clk 0:01:22]}  Qf7 {[%clk 0:00:13]} 18. Qc2 {[%clk 0:01:20]}  Ne7 {[%clk 0:00:11]} 19. Nb5 {[%clk 0:01:17]}  Bb8 {[%clk 0:00:10]} 20. Bxh6 {[%clk 0:01:08]}  gxh6 {[%clk 0:00:00]} 21. Rxe7 {[%clk 0:01:07]} 1-0


[Site "https://www.chess.com"]

[Event "Titled Tuesday Blitz August 1 Late 2023"]
[White "Zhigalko, Sergei"]
[Black "Garcia de Dios, Jose Antonio"]
[WhiteFideId "13502956"]
[BlackFideId "5128919"]
[WhiteElo "2896"]
[BlackElo "2472"]
[Result "1-0"]
[Round "1"]
[TimeControl "180+1"]
[Date "2023.08.01"]
[WhiteClock "0:00:03"]
[BlackClock "0:00:06"]
[Board "24"]

1. e4 {[%clk 0:03:00]}  e6 {[%clk 0:03:00]} 2. d4 {[%clk 0:03:00]}  d5 {[%clk 0:03:00]} 3. e5 {[%clk 0:03:01]}  c5 {[%clk 0:03:01]} 4. c3 {[%clk 0:03:02]}  Nc6 {[%clk 0:03:02]} 5. Nf3 {[%clk 0:03:02]}  Qb6 {[%clk 0:03:03]} 6. Bd3 {[%clk 0:03:02]}  cxd4 {[%clk 0:03:03]} 7. O-O {[%clk 0:03:02]}  Bd7 {[%clk 0:03:03]} 8. Re1 {[%clk 0:03:02]}  Nge7 {[%clk 0:03:00]} 9. h4 {[%clk 0:03:01]}  h5 {[%clk 0:02:54]} 10. Nbd2 {[%clk 0:02:49]}  Nf5 {[%clk 0:02:49]} 11. c4 {[%clk 0:02:32]}  O-O-O {[%clk 0:02:05]} 12. Bxf5 {[%clk 0:02:27]}  exf5 {[%clk 0:02:05]} 13. cxd5 {[%clk 0:02:28]}  Nb4 {[%clk 0:01:58]} 14. Nc4 {[%clk 0:02:26]}  Qc5 {[%clk 0:01:57]} 15. Bg5 {[%clk 0:02:26]}  Qxd5 {[%clk 0:01:46]} 16. Rc1 {[%clk 0:02:12]}  Nc6 {[%clk 0:01:46]} 17. Bxd8 {[%clk 0:02:06]}  Kxd8 {[%clk 0:01:47]} 18. Qd2 {[%clk 0:01:47]}  Be7 {[%clk 0:01:10]} 19. a3 {[%clk 0:01:39]}  f6 {[%clk 0:01:05]} 20. b4 {[%clk 0:01:36]}  Rg8 {[%clk 0:00:55]} 21. Nd6 {[%clk 0:01:13]}  Bxd6 {[%clk 0:00:46]} 22. exd6 {[%clk 0:01:13]}  a6 {[%clk 0:00:47]} 23. Rcd1 {[%clk 0:01:02]}  g5 {[%clk 0:00:32]} 24. hxg5 {[%clk 0:01:01]}  fxg5 {[%clk 0:00:31]} 25. Nxd4 {[%clk 0:01:01]}  Nxd4 {[%clk 0:00:29]} 26. Qxd4 {[%clk 0:01:02]}  Qxd4 {[%clk 0:00:29]} 27. Rxd4 {[%clk 0:01:03]}  g4 {[%clk 0:00:25]} 28. Re7 {[%clk 0:00:59]}  h4 {[%clk 0:00:23]} 29. Rh7 {[%clk 0:00:45]}  h3 {[%clk 0:00:22]} 30. gxh3 {[%clk 0:00:17]}  gxh3+ {[%clk 0:00:22]} 31. Kh2 {[%clk 0:00:17]}  f4 {[%clk 0:00:22]} 32. Rxf4 {[%clk 0:00:17]}  Rg2+ {[%clk 0:00:22]} 33. Kh1 {[%clk 0:00:17]}  Rg8 {[%clk 0:00:22]} 34. f3 {[%clk 0:00:12]}  Re8 {[%clk 0:00:20]} 35. Rff7 {[%clk 0:00:07]}  Bc6 {[%clk 0:00:19]} 36. Rxh3 {[%clk 0:00:05]}  Rg8 {[%clk 0:00:16]} 37. Rhh7 {[%clk 0:00:04]}  Kc8 {[%clk 0:00:13]} 38. Kh2 {[%clk 0:00:04]}  Rd8 {[%clk 0:00:11]} 39. Rc7+ {[%clk 0:00:03]}  Kb8 {[%clk 0:00:11]} 40. Rcg7 {[%clk 0:00:02]}  Re8 {[%clk 0:00:10]} 41. f4 {[%clk 0:00:03]}  Rd8 {[%clk 0:00:10]} 42. f5 {[%clk 0:00:03]}  a5 {[%clk 0:00:11]} 43. bxa5 {[%clk 0:00:03]}  Rxd6 {[%clk 0:00:11]} 44. a6 {[%clk 0:00:03]}  bxa6 {[%clk 0:00:06]} 45. Rh8+ {[%clk 0:00:03]} 1-0


[Site "https://www.chess.com"]

[Event "Titled Tuesday Blitz August 1 Late 2023"]
[White "Aravindh, Chithambaram VR."]
[Black "ExchangeAB"]
[WhiteFideId "5072786"]
[WhiteElo "2887"]
[BlackElo "2468"]
[Result "1-0"]
[Round "1"]
[TimeControl "180+1"]
[Date "2023.08.01"]
[WhiteClock "0:00:38"]
[BlackClock "0:01:06"]
[Board "26"]

1. b3 {[%clk 0:02:58]}  e5 {[%clk 0:02:58]} 2. Bb2 {[%clk 0:02:59]}  Nc6 {[%clk 0:02:59]} 3. c4 {[%clk 0:02:56]}  Nf6 {[%clk 0:02:58]} 4. Nf3 {[%clk 0:02:56]}  d6 {[%clk 0:02:57]} 5. e3 {[%clk 0:02:55]}  g6 {[%clk 0:02:58]} 6. d4 {[%clk 0:02:55]}  exd4 {[%clk 0:02:58]} 7. Nxd4 {[%clk 0:02:56]}  Nxd4 {[%clk 0:02:57]} 8. Qxd4 {[%clk 0:02:53]}  Bg7 {[%clk 0:02:57]} 9. Nc3 {[%clk 0:02:53]}  O-O {[%clk 0:02:56]} 10. Be2 {[%clk 0:02:43]}  Nd7 {[%clk 0:02:55]} 11. Qd2 {[%clk 0:02:42]}  Re8 {[%clk 0:02:52]} 12. O-O {[%clk 0:02:42]}  Nc5 {[%clk 0:02:52]} 13. Rad1 {[%clk 0:02:22]}  Bf5 {[%clk 0:02:43]} 14. Nd5 {[%clk 0:02:22]}  Ne4 {[%clk 0:02:36]} 15. Qc1 {[%clk 0:02:18]}  Nf6 {[%clk 0:02:26]} 16. Qa1 {[%clk 0:02:14]}  Re6 {[%clk 0:02:02]} 17. c5 {[%clk 0:01:56]}  c6 {[%clk 0:01:54]} 18. Nf4 {[%clk 0:01:42]}  d5 {[%clk 0:01:40]} 19. Nxe6 {[%clk 0:01:42]}  Bxe6 {[%clk 0:01:39]} 20. e4 {[%clk 0:01:38]}  Qe7 {[%clk 0:01:37]} 21. exd5 {[%clk 0:01:33]}  Bxd5 {[%clk 0:01:38]} 22. Rfe1 {[%clk 0:01:33]}  Ne8 {[%clk 0:01:27]} 23. Bxg7 {[%clk 0:01:25]}  Nxg7 {[%clk 0:01:28]} 24. Bf3 {[%clk 0:01:22]}  Qxc5 {[%clk 0:01:26]} 25. Bxd5 {[%clk 0:01:22]}  cxd5 {[%clk 0:01:27]} 26. Qd4 {[%clk 0:01:18]}  Qa3 {[%clk 0:01:16]} 27. Qxd5 {[%clk 0:01:11]}  Qxa2 {[%clk 0:01:16]} 28. Qxb7 {[%clk 0:01:10]}  Rf8 {[%clk 0:01:16]} 29. Ra1 {[%clk 0:00:52]}  Qd2 {[%clk 0:01:15]} 30. Qxa7 {[%clk 0:00:49]}  Ne6 {[%clk 0:01:15]} 31. Qe3 {[%clk 0:00:48]}  Qb4 {[%clk 0:01:14]} 32. Ra4 {[%clk 0:00:42]}  Qb5 {[%clk 0:01:12]} 33. Rea1 {[%clk 0:00:40]}  Nc5 {[%clk 0:01:06]} 34. Ra5 {[%clk 0:00:38]} 1-0


[Site "https://www.chess.com"]

[Event "Titled Tuesday Blitz August 1 Late 2023"]
[White "Polaczek, Richard"]
[Black "Perez Ponsa, Federico"]
[WhiteFideId "200026"]
[BlackFideId "117927"]
[WhiteElo "2468"]
[BlackElo "2882"]
[Result "0-1"]
[Round "1"]
[TimeControl "180+1"]
[Date "2023.08.01"]
[WhiteClock "0:00:15"]
[BlackClock "0:01:47"]
[Board "27"]

1. d4 {[%clk 0:02:46]}  Nf6 {[%clk 0:02:57]} 2. Nf3 {[%clk 0:02:44]}  g6 {[%clk 0:02:58]} 3. Bg5 {[%clk 0:02:42]}  Bg7 {[%clk 0:02:58]} 4. Nbd2 {[%clk 0:02:42]}  O-O {[%clk 0:02:59]} 5. c3 {[%clk 0:02:39]}  d6 {[%clk 0:02:58]} 6. e4 {[%clk 0:02:37]}  c5 {[%clk 0:02:57]} 7. dxc5 {[%clk 0:02:34]}  dxc5 {[%clk 0:02:58]} 8. Qc2 {[%clk 0:02:32]}  Nc6 {[%clk 0:02:57]} 9. Bc4 {[%clk 0:02:27]}  Qc7 {[%clk 0:02:54]} 10. O-O {[%clk 0:02:24]}  Rd8 {[%clk 0:02:54]} 11. Rfe1 {[%clk 0:02:09]}  h6 {[%clk 0:02:48]} 12. Bh4 {[%clk 0:02:06]}  Nh5 {[%clk 0:02:47]} 13. a4 {[%clk 0:01:57]}  Na5 {[%clk 0:02:12]} 14. Bf1 {[%clk 0:01:47]}  Be6 {[%clk 0:02:10]} 15. Bg3 {[%clk 0:01:12]}  Nxg3 {[%clk 0:02:09]} 16. hxg3 {[%clk 0:01:12]}  c4 {[%clk 0:02:01]} 17. e5 {[%clk 0:00:47]}  Bf5 {[%clk 0:01:57]} 18. Ne4 {[%clk 0:00:46]}  Bxe5 {[%clk 0:01:54]} 19. Re3 {[%clk 0:00:33]}  Bg7 {[%clk 0:01:51]} 20. Rae1 {[%clk 0:00:31]}  Nb3 {[%clk 0:01:49]} 21. Nh2 {[%clk 0:00:21]}  Nc5 {[%clk 0:01:47]} 22. g4 {[%clk 0:00:15]}  Bxe4 {[%clk 0:01:47]} 0-1


[Site "https://www.chess.com"]

[Event "Titled Tuesday Blitz August 1 Late 2023"]
[White "Hamley, Ryan"]
[Black "Shtembuliak, Evgeny"]
[WhiteFideId "30959497"]
[BlackFideId "14113325"]
[WhiteElo "2467"]
[BlackElo "2869"]
[Result "0-1"]
[Round "1"]
[TimeControl "180+1"]
[Date "2023.08.01"]
[WhiteClock "0:00:00"]
[BlackClock "0:00:18"]
[Board "29"]

1. d4 {[%clk 0:02:56]}  Nf6 {[%clk 0:02:59]} 2. c4 {[%clk 0:02:57]}  d6 {[%clk 0:03:00]} 3. Nc3 {[%clk 0:02:56]}  Bf5 {[%clk 0:03:00]} 4. g3 {[%clk 0:02:54]}  e5 {[%clk 0:03:00]} 5. Bg2 {[%clk 0:02:51]}  c6 {[%clk 0:02:59]} 6. Nf3 {[%clk 0:02:51]}  Nbd7 {[%clk 0:02:58]} 7. O-O {[%clk 0:02:45]}  h6 {[%clk 0:02:59]} 8. Re1 {[%clk 0:02:44]}  e4 {[%clk 0:02:51]} 9. Nd2 {[%clk 0:02:35]}  d5 {[%clk 0:02:51]} 10. b3 {[%clk 0:02:32]}  Be7 {[%clk 0:02:47]} 11. Bb2 {[%clk 0:02:32]}  O-O {[%clk 0:02:47]} 12. Nf1 {[%clk 0:02:31]}  Nb6 {[%clk 0:02:47]} 13. Ne3 {[%clk 0:02:30]}  Be6 {[%clk 0:02:47]} 14. cxd5 {[%clk 0:02:26]}  cxd5 {[%clk 0:02:44]} 15. Rc1 {[%clk 0:02:27]}  Ng4 {[%clk 0:02:38]} 16. Nxg4 {[%clk 0:02:13]}  Bxg4 {[%clk 0:02:39]} 17. f3 {[%clk 0:02:13]}  exf3 {[%clk 0:02:35]} 18. exf3 {[%clk 0:02:14]}  Be6 {[%clk 0:02:35]} 19. Qd3 {[%clk 0:02:12]}  Bf6 {[%clk 0:02:33]} 20. Nb5 {[%clk 0:02:05]}  Rc8 {[%clk 0:02:16]} 21. Ba3 {[%clk 0:01:54]}  Rxc1 {[%clk 0:02:05]} 22. Rxc1 {[%clk 0:01:55]}  Re8 {[%clk 0:02:04]} 23. Nc7 {[%clk 0:01:55]}  Be7 {[%clk 0:01:56]} 24. Nxe6 {[%clk 0:01:34]}  fxe6 {[%clk 0:01:54]} 25. Bc5 {[%clk 0:01:32]}  Nd7 {[%clk 0:01:49]} 26. Bxe7 {[%clk 0:01:28]}  Rxe7 {[%clk 0:01:50]} 27. Bh3 {[%clk 0:01:27]}  Nf8 {[%clk 0:01:51]} 28. Re1 {[%clk 0:01:26]}  Qd6 {[%clk 0:01:50]} 29. Re5 {[%clk 0:01:26]}  Rc7 {[%clk 0:01:49]} 30. Qd2 {[%clk 0:01:23]}  Qc6 {[%clk 0:01:47]} 31. Kf2 {[%clk 0:01:14]}  b6 {[%clk 0:01:27]} 32. f4 {[%clk 0:01:10]}  g6 {[%clk 0:01:22]} 33. Qe2 {[%clk 0:00:58]}  Kf7 {[%clk 0:01:22]} 34. Qd2 {[%clk 0:00:40]}  Qc1 {[%clk 0:01:15]} 35. Re2 {[%clk 0:00:39]}  Qh1 {[%clk 0:01:11]} 36. Bg2 {[%clk 0:00:17]}  Qxh2 {[%clk 0:01:11]} 37. Re1 {[%clk 0:00:18]}  Qh5 {[%clk 0:01:07]} 38. Qe3 {[%clk 0:00:15]}  Rc2+ {[%clk 0:01:04]} 39. Kg1 {[%clk 0:00:15]}  Qf5 {[%clk 0:01:02]} 40. Re2 {[%clk 0:00:07]}  Rxe2 {[%clk 0:00:53]} 41. Qxe2 {[%clk 0:00:08]}  g5 {[%clk 0:00:53]} 42. fxg5 {[%clk 0:00:07]}  Qxg5 {[%clk 0:00:51]} 43. Qf2+ {[%clk 0:00:08]}  Kg7 {[%clk 0:00:51]} 44. Qc2 {[%clk 0:00:07]}  Qxg3 {[%clk 0:00:49]} 45. Qc6 {[%clk 0:00:07]}  Qe1+ {[%clk 0:00:47]} 46. Kh2 {[%clk 0:00:07]}  Qh4+ {[%clk 0:00:47]} 47. Kg1 {[%clk 0:00:08]}  Qxd4+ {[%clk 0:00:47]} 48. Kh2 {[%clk 0:00:08]}  Qe5+ {[%clk 0:00:46]} 49. Kh1 {[%clk 0:00:09]}  Ng6 {[%clk 0:00:44]} 50. Qb7+ {[%clk 0:00:09]}  Kf6 {[%clk 0:00:44]} 51. Qxa7 {[%clk 0:00:09]}  Qe1+ {[%clk 0:00:42]} 52. Kh2 {[%clk 0:00:09]}  Qh4+ {[%clk 0:00:42]} 53. Kg1 {[%clk 0:00:10]}  Qd4+ {[%clk 0:00:42]} 54. Kh1 {[%clk 0:00:10]}  Nf4 {[%clk 0:00:41]} 55. Qb8 {[%clk 0:00:10]}  Qd1+ {[%clk 0:00:37]} 56. Kh2 {[%clk 0:00:11]}  Qh5+ {[%clk 0:00:37]} 57. Kg1 {[%clk 0:00:11]}  Qg5 {[%clk 0:00:35]} 58. Qd8+ {[%clk 0:00:09]}  Ke5 {[%clk 0:00:35]} 59. Qb8+ {[%clk 0:00:07]}  Kf6 {[%clk 0:00:23]} 60. Qf8+ {[%clk 0:00:07]}  Kg6 {[%clk 0:00:22]} 61. Qe8+ {[%clk 0:00:05]}  Kg7 {[%clk 0:00:21]} 62. Qd7+ {[%clk 0:00:05]}  Kg6 {[%clk 0:00:17]} 63. Qe8+ {[%clk 0:00:05]}  Kf5 {[%clk 0:00:17]} 64. Qf8+ {[%clk 0:00:00]}  Kg4 {[%clk 0:00:18]} 0-1


[Site "https://www.chess.com"]

[Event "Titled Tuesday Blitz August 1 Late 2023"]
[White "Moroni, Luca Jr"]
[Black "szachmistrz2500"]
[WhiteFideId "865834"]
[WhiteElo "2868"]
[BlackElo "2467"]
[Result "1-0"]
[Round "1"]
[TimeControl "180+1"]
[Date "2023.08.01"]
[WhiteClock "0:01:04"]
[BlackClock "0:00:44"]
[Board "30"]

1. d4 {[%clk 0:03:00]}  c5 {[%clk 0:02:59]} 2. d5 {[%clk 0:03:00]}  e5 {[%clk 0:02:58]} 3. dxe6 {[%clk 0:02:59]}  fxe6 {[%clk 0:02:57]} 4. e4 {[%clk 0:02:55]}  Nc6 {[%clk 0:02:57]} 5. Nf3 {[%clk 0:02:55]}  Nf6 {[%clk 0:02:57]} 6. Nc3 {[%clk 0:02:54]}  d5 {[%clk 0:02:55]} 7. exd5 {[%clk 0:02:34]}  exd5 {[%clk 0:02:56]} 8. Bb5 {[%clk 0:02:33]}  d4 {[%clk 0:02:47]} 9. Ne2 {[%clk 0:02:32]}  Bd6 {[%clk 0:02:41]} 10. Bxc6+ {[%clk 0:02:29]}  bxc6 {[%clk 0:02:41]} 11. Bf4 {[%clk 0:02:30]}  Ba6 {[%clk 0:02:36]} 12. Bxd6 {[%clk 0:02:19]}  Qxd6 {[%clk 0:02:37]} 13. O-O {[%clk 0:02:20]}  O-O {[%clk 0:02:36]} 14. Re1 {[%clk 0:02:16]}  Rae8 {[%clk 0:02:31]} 15. Ng3 {[%clk 0:02:13]}  Qd5 {[%clk 0:02:11]} 16. Qd2 {[%clk 0:02:11]}  Ne4 {[%clk 0:02:01]} 17. Nxe4 {[%clk 0:02:07]}  Rxe4 {[%clk 0:02:02]} 18. Rxe4 {[%clk 0:02:06]}  Qxe4 {[%clk 0:02:02]} 19. Re1 {[%clk 0:02:06]}  Qd5 {[%clk 0:02:03]} 20. a3 {[%clk 0:01:51]}  h6 {[%clk 0:01:50]} 21. Re5 {[%clk 0:01:42]}  Qd6 {[%clk 0:01:47]} 22. Qe1 {[%clk 0:01:40]}  Bc8 {[%clk 0:01:39]} 23. Qe4 {[%clk 0:01:36]}  Bd7 {[%clk 0:01:23]} 24. h3 {[%clk 0:01:33]}  a5 {[%clk 0:01:21]} 25. Nd2 {[%clk 0:01:23]}  Qf6 {[%clk 0:01:12]} 26. Nf3 {[%clk 0:01:22]}  Qd6 {[%clk 0:01:10]} 27. Qe2 {[%clk 0:01:09]}  Bf5 {[%clk 0:01:03]} 28. Qc4+ {[%clk 0:01:06]}  Rf7 {[%clk 0:00:44]} 29. Rxf5 {[%clk 0:01:04]} 1-0


[Site "https://www.chess.com"]